Cogmind - Beta 16.1 @@@ ROGUE MODE // 2026.03.15 @ 14:48:29 Player: VLAM Result: Destroyed by H-55 Commando with Gauss Rifle Performance ------------- Evolutions (3) 1500 Regions Visited (5) 1000 Robots Destroyed (47) 235 Value Destroyed (1492) 1492 Prototype IDs (0) 0 Alien Tech Used (0) 0 Bonus (0) 0 TOTAL SCORE: 4227 Bonus ------- None Cogmind --------- Core Integrity 0/700 Matter 300/300 Energy 92/100 System Corruption 9% Temperature Cool (0) Movement Core (50) Location -7/Factory Parts ------- > --- POWER (2) -------- (None) > --- PROPULSION (4) --- (None) > --- UTILITY (5) ------ (None) > --- WEAPON (2) ------- (None) > --- INVENTORY (5) ---- Aluminum Leg Gatling Laser Advanced Beam Cannon Heavy Assault Rifle Axe Peak State ------------ > --- POWER ------------ Light Nuclear Core Light Nuclear Core > --- PROPULSION ------- Aluminum Leg Aluminum Leg Carbon-fiber Leg Improved Titanium Leg > --- UTILITY ---------- High-capacity Storage Unit Weight Redist. System Improved Sensor Array Core Analyzer Recoil Stabilizer > --- WEAPON ----------- Gatling Laser Axe > --- INVENTORY -------- Light Ion Engine Improved Titanium Leg Improved Titanium Leg Improved Heat Sink Recoil Stabilizer Recoil Stabilizer Improved Medium Armor Plating Gatling Laser Advanced Beam Cannon Advanced Beam Cannon Heavy Assault Rifle Gauss Rifle Gauss Rifle Rocket Launcher Rocket Launcher Rocket Launcher Rocket Launcher Axe Axe Axe [Rating: 40] Favorites ----------- Power Light Nuclear Core Engine Ion Engine Power Core Light Nuclear Core Propulsion Aluminum Leg Treads Light Treads Leg Aluminum Leg Utility Weight Redist. System Device Weight Redist. System Storage High-capacity Storage Unit Processor Core Analyzer Protection Improved Medium Armor Plating Weapon Heavy Assault Rifle Energy Gun Gatling Laser Ballistic Gun Heavy Assault Rifle Launcher Rocket Launcher Slashing Weapon Axe Build | -11 -10 -9 -9 -8 -7 ------- Run | Yrd Mat Mat Min Mat Fac Slots Evolved 6 | . . 2 . 2 2 Power 1 | . . . . 1 . Propulsion 2 | . . 1 . 1 . Utility 3 | . . 1 . . 2 Weapon . | . . . . . . Parts Attached 52 | 6 1 6 1 15 23 Power 10 | 1 . . . 4 5 Engine 7 | 1 . . . 2 4 Core 3 | . . . . 2 1 Reactor . | . . . . . . Propulsion 16 | 2 . 2 . 6 6 Treads 2 | . . . . 2 . Leg 14 | 2 . 2 . 4 6 Wheel . | . . . . . . Hover . | . . . . . . Flight . | . . . . . . Utility 12 | 1 1 2 . 1 7 Device 7 | . 1 . . 1 5 Storage 3 | 1 . 2 . . . Processor 1 | . . . . . 1 Hackware . | . . . . . . Protection 1 | . . . . . 1 Artifact . | . . . . . . Weapon 14 | 2 . 2 1 4 5 Energy Gun 3 | . . . . . 3 Energy Cannon . | . . . . . . Ballistic Gun 6 | 2 . 2 . 1 1 Ballistic Cannon . | . . . . . . Launcher 3 | . . . 1 2 . Special Weapon . | . . . . . . Impact Weapon . | . . . . . . Slashing Weapon 2 | . . . . 1 1 Piercing Weapon . | . . . . . . Special Melee Weapon . | . . . . . . Unidentified Prototypes . | . . . . . . Parts Lost 31 | . . . . 7 24 Power 6 | . . . . 1 5 Propulsion 10 | . . . . 3 7 Utility 8 | . . . . 1 7 Weapon 7 | . . . . 2 5 Highest Loss Streak 11 | . . . . 7 11 To Critical Strikes 1 | . . . . 1 . Average Backups 14 | 3 7 8 13 14 19 Power . | . 1 1 1 . 1 Propulsion 2 | 1 4 3 4 2 2 Utility 1 | . . . . 1 2 Weapon 9 | . 2 3 8 10 12 Tool/Special . | . . . . . . Unused Backups 18 | . . 4 . 1 13 Power . | . . . . . . Propulsion 3 | . . 1 . 1 1 Utility 2 | . . . . . 2 Weapon 13 | . . 3 . . 10 Tool/Special . | . . . . . . Average Slot Usage (%) 91 | . 91 94 100 90 90 Engine 7 | . 14 11 11 11 3 Core 6 | . . . . 5 9 Treads 3 | . . . . 11 2 Leg 23 | . 28 28 33 18 23 Device 17 | . 5 11 11 15 23 Storage 11 | . 14 21 22 9 7 Processor 1 | . . . . . 3 Energy Gun 2 | . . . . . 5 Ballistic Gun 9 | . 28 22 14 8 2 Launcher 1 | . . . 7 5 . Slashing Weapon 3 | . . . . 3 5 Peak Build Rating 40 | 6 8 14 14 25 40 Average Rating 23 | 4 6 12 14 19 33 On Entrance 11 | . 6 8 14 14 25 Avg Prop Armor Cover (%) 7 | . . . . 7 8 Naked Turns 1 | . . . . . 1 Heaviest Build 69 | 14 14 52 53 58 69 Greatest Support 61 | 20 26 36 36 46 61 Greatest Overweight (x) 13 | . . 1 1 3 13 Average Overweight (x) . | . . . 1 1 . Largest Inventory Capacity 20 | 8 8 20 20 20 20 Average Capacity 17 | 7 8 9 20 20 19 Most Carried 20 | 6 8 13 13 20 20 Average Carried 15 | 2 7 8 13 15 19 Final Capacity 20 | 8 8 20 20 20 5 Final Carried 20 | 6 8 13 13 20 5 Class Distribution -------------------- 54% | Scavenger-Mutant 45% | Mutant Dominant Class ---------------- Mutant | -10/Materials Mutant | -9/Materials Mutant | -9/Mines Mutant | -8/Materials Scavenger-Mutant | -7/Factory Resources | -11 -10 -9 -9 -8 -7 ----------- Run | Yrd Mat Mat Min Mat Fac Matter Collected 1124 | 193 57 248 10 418 198 Remotely . | . . . . . . Salvage Created 1775 | . 57 329 . 580 809 Parts 108 | . 3 18 . 39 48 Haulers Intercepted 2 | . 1 1 . . . Recyclers Shooed 1 | . . . . 1 . Parts Field Recycled . | . . . . . . Retrieved Matter . | . . . . . . Parts Self-Destructed . | . . . . . . Prevented . | . . . . . . Parts Restored . | . . . . . . Kills | -11 -10 -9 -9 -8 -7 ------- Run | Yrd Mat Mat Min Mat Fac Combat Hostiles Destroyed 36 | . . 6 . 16 14 Melee 5 | . . . . 1 4 Guns 18 | . . 6 . 2 10 AOE 13 | . . . . 13 . Classes Destroyed 12 | . 1 4 . 4 3 Worker 2 | . . . . . 2 Builder 1 | . . . . 1 . Hauler 2 | . 1 1 . . . Recycler 6 | . . 1 . 3 2 Swarmer 10 | . . 3 . 4 3 Grunt 12 | . . 2 . 7 3 Brawler 2 | . . . . 1 1 Duelist 1 | . . . . 1 . Sentry 5 | . . 1 . 2 2 Specialist 1 | . . . . . 1 Hunter 2 | . . . . 1 1 Programmer 3 | . . . . . 3 Best Kill Streak 9 | . 1 4 . 9 4 Combat Bots Only 7 | . . 3 . 7 3 Max Kills in Single Turn 2 | . 1 1 . 2 2 Gunslinging . | . . . . . . Exploded 2 | . . . . 2 . Melee 1 | . . . . 1 1 Uniques/NPCs Destroyed . | . . . . . . Combat | -11 -10 -9 -9 -8 -7 -------- Run | Yrd Mat Mat Min Mat Fac Hostile Shots Fired 472 | . . 30 . 89 353 Missed 152 | . . 10 . 26 116 Hits 320 | . . 20 . 63 237 Melee 2 | . . . . 2 . Projectile 318 | . . 20 . 61 237 Critical Strikes 12 | . . . . 3 9 Part Disruptions 1 | . . . . . 1 Damage Taken 4211 | . . 205 . 1076 2930 Core 926 | . . 38 . 179 709 Absorbed by Shields . | . . . . . . Core Remaining (%) 89 | 100 100 . 90 67 . Volleys Fired 85 | . 2 16 . 28 39 Largest 2 | . 2 2 . 2 2 Hottest 135 | . 40 46 . 66 135 Shots Fired 133 | . 4 32 . 46 51 Gun 110 | . 4 32 . 23 51 Cannon . | . . . . . . Launcher 23 | . . . . 23 . Special . | . . . . . . Kinetic 65 | . 4 32 . 23 6 Thermal 29 | . . . . . 29 Explosive 23 | . . . . 23 . Electromagnetic 16 | . . . . . 16 Robot Hit Streak 8 | . 3 7 . 8 6 Robot Miss Streak 4 | . . 2 . 3 4 Penetration Max . | . . . . . . Secondary Targets 1 | . . 1 . . . Max Gunslinging Chain 1 | . . 1 . . . Shots Hit Robots 105 | . 3 19 . 32 51 Core Hits 93 | . 2 11 . 40 40 Critical Kills 1 | . . 1 . . . Critical Parts Destroyed . | . . . . . . Critical Strikes 2 | . . 1 . . 1 Destroy 1 | . . 1 . . . Sever 1 | . . . . . 1 Melee Attacks 22 | . . . . 3 19 Impact . | . . . . . . Slashing 22 | . . . . 3 19 Piercing . | . . . . . . Sneak Attacks 2 | . . . . . 2 Combat Hostiles . | . . . . . . Follow-up Attacks . | . . . . . . Damage Inflicted 3282 | . 42 293 . 1534 1413 Guns 1272 | . 42 293 . 202 735 Cannons . | . . . . . . Explosions 1381 | . . . . 1272 109 Melee 618 | . . . . 60 558 Ramming 11 | . . . . . 11 Kinetic 642 | . 42 293 . 202 105 Thermal 663 | . . . . . 663 Explosive 1272 | . . . . 1272 . Electromagnetic 76 | . . . . . 76 Impact . | . . . . . . Slashing 618 | . . . . 60 558 Piercing . | . . . . . . Highest Corruption 9 | . . . . . 9 Average Corruption 1 | . . . . . 1 Corruption Purged . | . . . . . . Corruption Blocked . | . . . . . . Effects 5 | . . . . . 5 Message Errors 2 | . . . . . 2 Matter Fused 1 | . . . . . 1 Data Loss (minor) 1 | . . . . . 1 Alerts 1 | . . . . . 1 Overload Shots . | . . . . . . Overflow Damage 207 | . . . . 75 132 Projectiles . | . . . . . . Explosions 117 | . . . . 75 42 Melee 90 | . . . . . 90 Knockbacks . | . . . . . . Impact . | . . . . . . Kinetic . | . . . . . . Secondary . | . . . . . . Self-Inflicted Damage 251 | . . . . 189 62 Shots 7 | . . . . 6 1 Rammed 1 | . . . . . 1 Targets Rammed 5 | . . . . . 5 Kicked 4 | . . . . . 4 Crushed . | . . . . . . Highest Temperature 192 | . . 1 . 25 192 Average Temperature 42 | . . 1 . 7 52 Received Heat Transfer 555 | . . 66 . 297 192 Siege Activations . | . . . . . . Martial Activations . | . . . . . . Shielding Activations . | . . . . . . Robots Disrupted 1 | . . . . . 1 Combat Hostiles . | . . . . . . Robots Corrupted . | . . . . . . Combat Hostiles . | . . . . . . Parts Fried . | . . . . . . Impact Corruptions . | . . . . . . Robots Melted . | . . . . . . Combat Hostiles . | . . . . . . Parts Melted 2 | . . . . . 2 Heat Transferred 1238 | . . . . . 1238 Parts Sabotaged . | . . . . . . Parts Stolen . | . . . . . . Parts Stripped . | . . . . . . Power Chain Reactions 1 | . . . . . 1 Alert | -11 -10 -9 -9 -8 -7 ------- Run | Yrd Mat Mat Min Mat Fac Maximum Alert Level 1 | . . . . 1 . Low Security (%) 85 | 100 100 100 100 39 100 Level 1 14 | . . . . 60 . Level 2 . | . . . . . . Level 3 . | . . . . . . Level 4 . | . . . . . . Level 5 . | . . . . . . High Security . | . . . . . . Max Security . | . . . . . . Peak Influence 281 | . 7 112 25 281 119 Initial 105 | . . . 25 . 105 Average 78 | . . 49 13 196 49 Influence Increases 1164 | . 7 191 . 531 435 Destroy 0b10 Robot/C 720 | . . 120 . 320 280 Destroy 0b10 Robot/NC 55 | . 5 10 . 20 20 Destroy Leader 164 | . 2 22 . 70 70 Successful Hack 9 | . . 9 . . . Disable Machine 45 | . . 15 . 30 . Destroy Structure 96 | . . . . 91 5 Lose Combat Pursuer 75 | . . 15 . . 60 Influence Decreases 1164 | . 7 125 66 298 668 Entered New Map 169 | . . . 41 . 128 Time Decay 720 | . 7 125 25 228 335 Lost Part 275 | . . . . 70 205 Squads Dispatched 9 | . . 1 . 3 5 Investigation 1 | . . 1 . . . Extermination 3 | . . . . . 3 Reinforcement 5 | . . . . 3 2 Assault . | . . . . . . Garrison . | . . . . . . Intercept . | . . . . . . Searches Triggered . | . . . . . . Construction Impeded 1 | . . . . 1 . Haulers Reinforced 1 | . . . . . 1 Active Scanning Responses . | . . . . . . Cargo Convoy Interrupts 1 | . . . . . 1 Stealth | -11 -10 -9 -9 -8 -7 --------- Run | Yrd Mat Mat Min Mat Fac Distress Signals 4 | . . 1 . . 3 Communications Jammed . | . . . . . . Distress Signals . | . . . . . . Times Spotted 68 | . . 9 . 19 40 Peak Tracking Total 12 | . . 3 . 7 12 Tactical Retreats 4 | . . 1 . . 3 Traps | -11 -10 -9 -9 -8 -7 ------- Run | Yrd Mat Mat Min Mat Fac Traps Triggered 1 | . . . . . 1 Indirectly . | . . . . . . Trap Hack Attempts . | . . . . . . Triggered . | . . . . . . Disarmed . | . . . . . . Reprogrammed . | . . . . . . Reused . | . . . . . . Traps Extracted . | . . . . . . Installed . | . . . . . . Triggered . | . . . . . . Machines | -11 -10 -9 -9 -8 -7 ---------- Run | Yrd Mat Mat Min Mat Fac Machines Disabled 3 | . . 1 . 2 . Max in Single Turn 1 | . . 1 . 1 . Machines Repaired . | . . . . . . Machines Dismantled . | . . . . . . Machines Sabotaged . | . . . . . . Overloaded Fab Kills . | . . . . . . Hacking | -11 -10 -9 -9 -8 -7 --------- Run | Yrd Mat Mat Min Mat Fac Machines Accessed 5 | . . 2 . 1 2 Terminals 5 | . . 2 . 1 2 Fabricators . | . . . . . . Repair Stations . | . . . . . . Recycling Units . | . . . . . . Scanalyzers . | . . . . . . Garrison Access . | . . . . . . Total Hacks 15 | . . 6 . 2 7 Successful 4 | . . 2 . 1 1 Failed 11 | . . 4 . 1 6 Catastrophic 4 | . . 4 . . . Database Lockouts . | . . . . . . Manual . | . . . . . . Terminals 15 | . . 6 . 2 7 Fabricators . | . . . . . . Repair Stations . | . . . . . . Recycling Units . | . . . . . . Scanalyzers . | . . . . . . Garrison Access . | . . . . . . Terminal Hacks 4 | . . 2 . 1 1 Locate Traps 1 | . . 1 . . . Hauler Manifests 2 | . . . . 1 1 Zone Layout 1 | . . 1 . . . Fabricator Hacks . | . . . . . . Repair Station Hacks . | . . . . . . Recycling Unit Hacks . | . . . . . . Scanalyzer . | . . . . . . Garrison Access Hacks . | . . . . . . Unauthorized Hacks . | . . . . . . Terminals . | . . . . . . Fabricators . | . . . . . . Repair Stations . | . . . . . . Recycling Units . | . . . . . . Scanalyzers . | . . . . . . Garrison Access . | . . . . . . Data Cores Recovered . | . . . . . . Used . | . . . . . . Hacking Detections 5 | . . 2 . 1 2 Full Trace Events 2 | . . 2 . . . Feedback Events . | . . . . . . Feedback Blocked . | . . . . . . Robot Schematics Acquired . | . . . . . . Robots Built . | . . . . . . Authchips . | . . . . . . Time . | . . . . . . Total Robot Build Rating . | . . . . . . Part Schematics Acquired . | . . . . . . Parts Built . | . . . . . . Authchips . | . . . . . . Time . | . . . . . . Total Part Build Rating . | . . . . . . Part Studies Acquired . | . . . . . . Parts Repaired . | . . . . . . Time . | . . . . . . Parts Recycled . | . . . . . . Recycled Matter . | . . . . . . Retrieved Matter . | . . . . . . Retrieved Components . | . . . . . . Parts Scanalyzed . | . . . . . . Part Schematics Acquired . | . . . . . . Parts Damaged . | . . . . . . Bothacking | -11 -10 -9 -9 -8 -7 ------------ Run | Yrd Mat Mat Min Mat Fac Used RIF Installer . | . . . . . . Robots Hacked . | . . . . . . Non-combat . | . . . . . . Combat . | . . . . . . Robot Hacks Applied . | . . . . . . Relay Couplers Released . | . . . . . . Fabnet Peak Effective % . | . . . . . . Robots Rewired . | . . . . . . Allies Hacked . | . . . . . . Hacks Repelled . | . . . . . . Allies | -11 -10 -9 -9 -8 -7 -------- Run | Yrd Mat Mat Min Mat Fac Total Allies . | . . . . . . Largest Group . | . . . . . . Highest-Rated Group . | . . . . . . Highest-Rated Ally . | . . . . . . Total Orders . | . . . . . . Ally Attacks . | . . . . . . Total Damage . | . . . . . . Kills . | . . . . . . Allies Corrupted . | . . . . . . Allies Melted . | . . . . . . Intel | -11 -10 -9 -9 -8 -7 ------- Run | Yrd Mat Mat Min Mat Fac Active Infowar (turns) 740 | . . . . . 740 Sensors 740 | . . . . . 740 Robot Analysis Total . | . . . . . . Derelict Logs Recovered . | . . . . . . Drone Launches . | . . . . . . Drone Recoveries . | . . . . . . Exploration | -11 -10 -9 -9 -8 -7 ------------- Run | Yrd Mat Mat Min Mat Fac Turns Passed 2170 | 65 137 366 63 511 1028 Spaces Moved 957 | 44 107 187 33 178 408 Core 7 | 3 . . . . 4 Treads 73 | . . . . 73 . Legs 877 | 41 107 187 33 105 404 Wheels . | . . . . . . Hover . | . . . . . . Flight . | . . . . . . Fastest Speed 50 | 50 120 120 190 190 50 Average Speed 168 | 115 120 128 190 216 181 Slowest Speed 700 | 120 120 190 190 330 700 Overloaded Moves . | . . . . . . Propulsion Burnouts . | . . . . . . Robots Hopped . | . . . . . . Potential Cave-ins . | . . . . . . Cave-ins Triggered . | . . . . . . Exploration Rate (%) 17 | 3 33 17 17 20 14 Regions Visited 5 Branch Regions 1 Pre-discovered Areas . | . . . . . . Known Exits Taken . | . . . . . . Unknown Exits Taken 5 | 1 1 1 1 1 . Scrap Searched 1 | . . . 1 . . Spaces Dug . | . . . . . . Terrain Destroyed 118 | . . . . 115 3 Melee . | . . . . . . Projectile . | . . . . . . AOE 118 | . . . . 115 3 Terrain Rammed . | . . . . . . Walls Destroyed . | . . . . . . Machines Disabled . | . . . . . . Actions | -11 -10 -9 -9 -8 -7 --------- Run | Yrd Mat Mat Min Mat Fac Total 1327 | 55 111 284 33 250 594 Wait 139 | . . 57 . 13 69 Move 952 | 43 106 186 32 177 408 Hop . | . . . . . . Pick Up 37 | 6 2 9 . 10 10 Fast Attach 21 | 6 1 2 . 4 8 Attach 16 | . . . . 6 10 Detach 4 | . . . . 1 3 Swap 20 | . . 5 1 6 8 Drop 26 | . . 9 . 2 15 Fire 85 | . 2 16 . 28 39 Melee 22 | . . . . 3 19 Ram 1 | . . . . . 1 Kick 4 | . . . . . 4 Crush . | . . . . . . Escape Stasis . | . . . . . . Rewire . | . . . . . . Trap . | . . . . . . Miscellaneous . | . . . . . . Route ------- -11/Scrapyard -10/Materials -9/Materials -9/Mines -8/Materials -7/Factory History --------- Turn | Location | Event 29 | -11/Scrapyard | Discovered new exit (range 15) 66 | -11/Scrapyard | Entered Materials 188 | -10/Materials | Discovered new exit (range 12) 203 | -10/Materials | Entered another Materials area 203 | -9/Materials | Evolved 2 slots: Propulsion x1, Utility x1 302 | -9/Materials | Build established: Mutant 502 | -9/Materials | Discovered new exit (range 5) 569 | -9/Materials | Entered Mines 611 | -9/Mines | Discovered new exit (range 8) 632 | -9/Mines | Entered Materials 632 | -8/Materials | Evolved 2 slots: Power x1, Propulsion x1 707 | -8/Materials | Lost 7 parts (1p3n1u2w) 712 | -8/Materials | Destroyed 7 combat bots 1113 | -8/Materials | Discovered new exit (range 16) 1143 | -8/Materials | Entered Factory 1143 | -7/Factory | Evolved 2 slots: Utility x2 1230 | -7/Factory | Build established: Scavenger-Mutant 1883 | -7/Factory | Lost 4 parts (1p1n1u1w) 2003 | -7/Factory | Allied Derelicts emerged from ambush trap array 2008 | -7/Factory | Lost 3 parts (2n1u) 2071 | -7/Factory | Cargo convoy interrupted 2109 | -7/Factory | Lost 3 allies 2154 | -7/Factory | Core integrity fell below 50% 2163 | -7/Factory | Core integrity fell below 20% 2171 | -7/Factory | Destroyed by H-55 Commando with Gauss Rifle Last Messages --------------- 02150_ Kicked P-60 Hacker out of the way. 02151_ Imp. Titanium Leg destroyed. 02152_ K-01 Serf collects debris. 02153_ Slammed into P-60 Hacker. 02153_ Gatling Laser destroyed. 02153_ Penetrated by Slug. 02154_ Slug penetrates Wall. 02154_ Imp. Deuterium Engine destroyed. 02156_ K-01 Serf collects debris. 02156_ Penetrated by Slug. 02162_ M-28 Smith repairs P-60 Hacker Mic. Nuclear Core. 02162_ Penetrated by Slug. 02163_ TF Node disabled. 02163_ Imp. Sensor Array tumbles out of TF Node. 02163_ Imp. Signal Interpreter tumbles out of TF Node. 02163_ Core Analyzer destroyed. 02164_ 9SASMVHH0LZOGQ<5627OEU|I 02165_ Slug penetrates Wall. 02169_ Penetrated by Slug. 02170_ Dropped Hcp. Storage Unit. Map ----- +----------------------------------------------------+ | ?????????????????????????????????????????????????? | | ????? ???????????????????????????????????????????? | | ????" ???????????????????????????????????????????? | | ???? ???????????????????????????????????????????? | | ???? ???????????????????????????????????????????? | | ?###+###?????????????????????????????????????????? | | ?# ??????????????????????????????????????????? | | ?# ??????????????????????????????????????????? | | ?# " ???????????????????????????????????????????? | | # "%#???????????????????????????????????????????? | | # "#??????????????????? ???????????????????????? | | ?+ #??????????????????? ???????????????????????? | | ?# #??????????????????? ???????????????????????? | | ## ###????????????????#u???????????????????????? | | #????####???????? ???????????????????????? | | =! ######T ###?????? ???????????????????????? | | % !%= ##### #??????????????????????? | | == % +??????????????????????? | | %= %= ######## #??????????????????????? | | =%[= ####### #??????# #??????????????????????? | | !%! ##????#! #??????# #??????????????????????? | | ###+####?????#[%!#??????# #??????????????????????? | | ? ???????#=|!#??????# #??????????????????????? | | [ ?????#%%|#?????##]##?????????????????????? | | #??####+########h!!###### " #??????????? | | """" #??# ! * /]/p!%p@[ a "T ????????????? | | """" #??# hi ]####*! ###### #??????????? | | """" #??# #??##+##?????????????????????? | | """" #??# #????????????????????????????? | | ?? #??# #????????????????????????????? | | ???? #??# * #????????????????????????????? | | ????#####??# #????????????????????????????? | | ???????????# #????????????????????????????? | | ???????????# #????????????????????????????? | | ???????????##########????????????????????????????? | | ?????????????????????????????????????????????????? | | ?????????????????????????????????????????????????? | | ?????????????????????????????????????????????????? | | ?????????????????????????????????????????????????? | | ?????????????????????????????????????????????????? | | ?????????????????????????????????????????????????? | | ?????????????????????????????????????????????????? | | ?????????????????????????????????????????????????? | | ?????????????????????????????????????????????????? | | ?????????????????????????????????????????????????? | | ?????????????????????????????????????????????????? | | ?????????????????????????????????????????????????? | | ?????????????????????????????????????????????????? | | ?????????????????????????????????????????????????? | | ?????????????????????????????????????????????????? | +----------------------------------------------------+ Best States ------------- Heat Dissipation 48 Energy Generation 23 Energy Capacity 400 Matter Stores 350 Matter Capacity 350 Sight Range 16 Robot Scan Range 15 Terrain Scan Density 10 Additional Mass Support 6 Armor Coverage 225 Evasion (%) 55 Core Analysis 6 Recoil Reduction 8 Item Schematics ----------------- None Robot Schematics ------------------ None Fabricated ------------ Nothing Repaired ---------- Nothing Studied --------- None Alien Tech Used ----------------- None Achievements -------------- None Challenges ------------ None Game ------ Seed TargetingAmuletDrivehammer Manual? 0 Play Time 00:26:35 Cumulative 24.9 hours Start 2026.03.12 @ 19:38:07 End 2026.03.15 @ 14:48:29 Sessions 5 Manual Loads 0 Difficulty Rogue Special Mode None Game No. 41 Rogue 41 Adventurer 0 Explorer 0 Win Type - Total 0 Types 0/0/0/0/0/0/0/0/0/0 Lore% 7 Gallery% 22 Achievement% 17 Wizard Run 0 Options --------- Layout 0 ASCII 0 Keyboard 1 Movement Numpad Keybinds 0 Fullscreen 2 Font 24/Smallcaps Map View 76x50 Zoom Use 0% Tactical HUD 1 Map Filters NONE Filters NONE Steam 1 RUN: 0898f333-169f-4656-bc83-8b0392a9a38e